[Event "European Women-ch 2023"]
[Site "Petrovac"]
[Date "2023.03.20"]
[Round "3.15"]
[White "Ivanovic, Tara"]
[Black "Froewis, Annika"]
[Result "0-1"]
[ECO "C06"]
[WhiteElo "1472"]
[BlackElo "2123"]
[Annotator "TA"]
[PlyCount "52"]
[EventDate "2023.03.15"]
[EventType "swiss"]
[EventCountry "MNE"]
[SourceTitle "playchess.com"]
[Source "ChessBase"]
[SourceQuality "1"]
[TimeControl "40/5400+30:1800+30"]

{[%evp 12,52,36,42,33,35,51,54,28,45,44,40,94,-133,-138,-141,-136,-146,-151,-149,-141,-144,-137,-146,-130,-161,-157,-160,-165,-187,-187,-209,-206,-208,-201,-198,-204,-211,-210,-225,-203,-449,-458]} 1. e4 {[%emt 0:00:03]} e6 {[%emt 0:00:05]} 2. d4 {[%emt 0:00:05]} d5 {[%emt 0:00:04]} 3. Nd2 {[%emt 0:00:05]} Nf6 {[%emt 0:00:48]} 4. e5 {[%emt 0:00:15]} Nfd7 {[%emt 0:00:07]} 5. Bd3 {[%emt 0:00:15]} c5 {[%emt 0:00:14]} 6. c3 {[%emt 0:00:09]} b6 {[%emt 0:03:47]} 7. Nh3 {[%emt 0:03:57]} Ba6 {[%emt 0:01:46] C06: French Tarrasch: 3...Nf6 4 e5 Nfd7 5 Bd3 main lines.} 8. Bxa6 {[%emt 0:02:15]} Nxa6 {[%emt 0:00:05][%cal Bb8a6,Ba6b4,Bb4c2][%mdl 32]} 9. Qg4 {[%emt 0:16:58]} cxd4 {White is slightly better.} 10. cxd4 {[%emt 0:00:31]} Nb4 11. O-O {[%emt 0:04:34] [#]} g6 $146 (11... Nc2 $14 12. Rb1 Rc8) ({Predecessor:} 11... Nc2 12. Rb1 h5 13. Qf4 Be7 14. Nf3 Nf8 15. Nfg5 Bxg5 16. Nxg5 Qd7 17. b3 Ng6 {½-½ Richter,W (2169)-Conde Poderoso,A (2293) Webchess op7 Gr117 email 2017}) 12. a3 $2 {[%emt 0:14:03] [#]} (12. Nf3 $16 {keeps the pressure on.}) 12... Nc2 $1 $17 {[%emt 0:24:39]} 13. Rb1 {[%emt 0:05:43] [#]} h5 $1 {[%emt 0:00:14]} 14. Qf4 {[%emt 0:01:14]} Bh6 {[%emt 0:00:26][%mdl 64] Inhibits Ng5. Deflection} 15. Qf3 {[%emt 0:03:18] Strongly threatening Nb3.} Nxd4 {[%emt 0:00:14] Black has more active pieces.} 16. Qd3 {[%emt 0:00:23]} Nf5 $36 {[%emt 0:05:22][%mdl 2048] Black is in control.} ({Don't do} 16... Nxe5 17. Qxd4 Bg7 18. Qa4+ Qd7 19. Qxd7+ Kxd7 20. Nb3 $16) 17. Nf3 {[%emt 0:07:42]} Nc5 {[%emt 0:03:11][%cal Bd7c5,Bc5a4,Ba4b2,Bb2d3][%mdl 32]} 18. Qb5+ {[%emt 0:05:30]} Qd7 {[%emt 0:00:19]} 19. Qxd7+ {[%emt 0:02:04]} Kxd7 {[%emt 0:01:02]} 20. Nhg5 {[%emt 0:05:07]} Ke7 {[%emt 0:09:55]} 21. b4 {[%emt 0:05:24]} Na4 {[%emt 0:03:45]} 22. Bd2 {[%emt 0:05:15]} b5 {[%emt 0:03:00]} 23. Rbc1 {[%emt 0:02:40] Threatens to win with Rc7+.} Rac8 {[%emt 0:04:14] Inhibits Rc7+.} 24. h3 {[%emt 0:01:52]} Bg7 {[%emt 0:03:49]} 25. Bf4 {[%emt 0:04:02]} Nb2 {[%emt 0:06:13]} 26. Rfe1 $2 {[%emt 0:05:58]} (26. g3 {was worth a try.}) 26... Nd3 {[%emt 0:01:11][%csl LRc1,LRe1,LRf4] Weighted Error Value: White=0.38/Black=0.04 (flawless)} 0-1

[Event "European Women-ch 2023"]
[Site "Petrovac"]
[Date "2023.03.20"]
[Round "3.16"]
[White "Melia, Salome"]
[Black "Calzetta Ruiz, Monica"]
[Result "1/2-1/2"]
[ECO "B40"]
[WhiteElo "2366"]
[BlackElo "2185"]
[Annotator "TA"]
[PlyCount "81"]
[EventDate "2023.03.15"]
[EventType "swiss"]
[EventCountry "MNE"]
[SourceTitle "playchess.com"]
[Source "ChessBase"]
[SourceQuality "1"]
[TimeControl "40/5400+30:1800+30"]

{[%evp 9,81,-7,0,-70,-58,-76,-17,-16,0,-21,0,0,6,-9,46,0,-2,-39,0,0,0,0,0,0,0,0,0,0,28,20,41,45,65,49,39,37,95,77,63,37,41,22,30,8,10,0,0,0,0,0,0,0,0,0,0,0,1840,0,0,0,0,0,0,-22,-20,-24,-27,-72,0,0,0,-74,0,0]} 1. e4 {[%emt 0:00:08]} c5 {[%emt 0:00:08]} 2. Nf3 {[%emt 0:00:03]} e6 {[%emt 0:00:09]} 3. b3 {[%emt 0:05:17]} b6 {[%emt 0:02:27]} 4. c4 {[%emt 0:03:11]} Bb7 {[%emt 0:00:35]} 5. Nc3 {[%emt 0:00:07]} Nc6 {[%emt 0:01:20]} 6. d4 {[%emt 0:09:36] B40: Sicilian: 2...e6, Unusual lines.} (6. Bb2 $11) 6... cxd4 $15 {[%emt 0:01:52]} 7. Nxd4 {[%emt 0:00:12] [#]} Nf6 {[%emt 0:17:24]} ({Much worse is} 7... Bb4 $6 8. Bb2 $11) (7... Qf6 $1 $17 {Hoping for ...Bc5.} 8. Nde2 Bc5) 8. Nc2 $11 {[%emt 0:03:23] [#]} Be7 $146 {[%emt 0:06:47][%cal Ob6b5]} ({Predecessor:} 8... Nb4 9. f3 Bc5 10. Bb2 O-O 11. Nxb4 Bxb4 12. a3 Bc5 13. b4 Be7 14. Qb3 d5 15. cxd5 exd5 {0-1 Zubarev,A (2490)-Krapivin,A (2460) Bykova Memorial 2006 (7)}) 9. Bd3 {[%emt 0:01:04]} O-O {[%emt 0:04:52]} 10. O-O {[%emt 0:00:25]} Rc8 {[%emt 0:11:45]} 11. Bb2 {[%emt 0:00:50]} a6 {[%emt 0:13:33]} ({Better is} 11... Ne5 $11) 12. Kh1 {[%emt 0:07:51]} (12. f4 $1 $14 {deserves consideration.}) 12... Ne5 {[%emt 0:05:40]} 13. Be2 {[%emt 0:05:45]} d6 {[%emt 0:03:03]} (13... Ng6 $5 {[%cal Rf6e4]}) 14. f4 {[%emt 0:00:12]} Ned7 {[%emt 0:00:04]} 15. Bf3 {[%emt 0:08:04]} b5 {[%emt 0:02:22]} 16. cxb5 {[%emt 0:04:03]} axb5 {[%emt 0:00:13][%cal Ob5b4]} 17. Qe2 {[%emt 0:00:57]} Qb6 {[%emt 0:07:13]} 18. a3 {[%emt 0:09:21][%cal Oc2d4]} Rc5 {[%emt 0:03:54]} 19. Rac1 {[%emt 0:05:45]} Rfc8 {[%emt 0:00:14]} 20. Nd4 {[%emt 0:00:48][%cal Rd4b5,Bc2d4,Bd4b3,Bb3a5][%mdl 32]} Ba6 {[%emt 0:06:45][%cal Oc5c3]} 21. b4 {[%emt 0:02:00]} Rc4 {[%emt 0:00:11]} 22. Nb3 {[%emt 0:00:11]} Ne8 {[%emt 0:02:54]} (22... Nf8 $14) 23. Na5 $16 {[%emt 0:05:47]} R4c7 {[%emt 0:00:03]} 24. e5 {[%emt 0:01:11] Inhibits Bf6.} dxe5 {[%emt 0:00:16]} 25. fxe5 {[%emt 0:00:46]} Bg5 {[%emt 0:01:40]} 26. Rcd1 {[%emt 0:05:19] And now Ne4 would win.} Nxe5 $1 {[%emt 0:01:11][%mdl 64] Remove Defender} 27. Qxe5 {[%emt 0:10:51]} Bf6 {[%emt 0:00:03]} 28. Qf4 {[%emt 0:00:06][%cal Of3h5] Bh5! would be deadly.} Bxc3 {[%emt 0:00:41]} 29. Bxc3 {[%emt 0:00:06]} Rxc3 {[%emt 0:00:14]} 30. Bb7 {[%emt 0:09:11]} R8c7 {[%emt 0:00:09]} 31. Rd8 {[%emt 0:00:25][%cal Rd8e8]} Kf8 {[%emt 0:00:02]} 32. Be4 {[%emt 0:00:53]} Ke7 $4 {[%emt 0:04:40][%mdl 8192] [#]} (32... h6 $11) 33. Qxf7+ $2 {[%emt 0:02:30]} (33. Rb8 $1 $18 f6 34. Rxb6) 33... Kxd8 $11 {[%emt 0:00:01]} 34. Rd1+ {[%emt 0:00:07]} Nd6 {[%emt 0:00:06]} 35. Qf8+ {[%emt 0:01:01]} Kd7 {[%emt 0:00:05][%cal Ob6d4] White must now prevent ...Qd4!} 36. Qxg7+ {[%emt 0:00:30]} Ke8 {[%emt 0:01:21]} 37. Qg8+ {[%emt 0:00:25]} Ke7 {[%emt 0:00:12]} 38. Qg5+ {[%emt 0:00:30]} Ke8 {[%emt 0:00:16]} (38... Kf8 $5 39. Qd8+ Kf7 40. Bxh7 Qf2 41. Qxd6 (41. Rxd6 $2 Qf1#) 41... Rc1 $17) 39. Qg8+ {[%emt 0:00:29]} Ke7 {[%emt 0:00:03]} 40. Qg5+ {[%emt 0:00:00]} Ke8 {[%emt 0:00:00]} (40... Kf8 $17 41. Qd8+ Kf7 42. Bxh7 Qf2 43. Qxd6 (43. Rxd6 $2 Qf1#) 43... Rc1) 41. Qg8+ {[%emt 0:03:11] A brilliant game!   Weighted Error Value: White=0.32/Black=0.20 (precise)} 1/2-1/2

[Event "European Women-ch 2023"]
[Site "Petrovac"]
[Date "2023.03.20"]
[Round "3.16"]
[White "Mashchenko, Tamila"]
[Black "Pavlidou, Ekaterini"]
[Result "0-1"]
[ECO "E53"]
[WhiteElo "1956"]
[BlackElo "2178"]
[Annotator "TA"]
[PlyCount "110"]
[EventDate "2023.03.15"]
[EventType "swiss"]
[EventCountry "MNE"]
[SourceTitle "playchess.com"]
[Source "ChessBase"]
[SourceQuality "1"]
[TimeControl "40/5400+30:1800+30"]

{[%evp 23,110,0,3,0,8,0,0,0,0,0,5,0,9,-32,-24,-37,-41,-213,-207,-203,-143,-154,-147,-212,-219,-274,-41,-70,19,-133,-133,-133,-134,-136,-124,-164,-160,-218,-203,-179,-127,-224,-223,-289,-248,-271,-257,-252,-195,-204,-195,-407,-404,-378,-350,-422,-422,-422,-422,-627,-576,-714,-695,-677,-625,-618,-422,-705,-422,-964,-910,-1175,-1153,-1016,-944,-2408,-1790,-1691,-1561,-12181,-6939,-7515,-6394,-29975,-29976,-29977,-29978,-29984,-29984]} 1. d4 {[%emt 0:09:21] Anand,Viswanathan} Nf6 {[%emt 0:00:23]} 2. c4 {[%emt 0:00:37]} e6 {[%emt 0:00:09]} 3. Nc3 {[%emt 0:00:10]} Bb4 {[%emt 0:00:13]} 4. e3 {[%emt 0:00:04]} O-O {[%emt 0:00:29]} 5. Bd3 {[%emt 0:00:06]} d5 {[%emt 0:00:20]} 6. a3 {[%emt 0:00:06]} Bxc3+ {[%emt 0:00:19]} 7. bxc3 {[%emt 0:00:07]} dxc4 {[%emt 0:00:15]} 8. Bxc4 {[%emt 0:00:06]} c5 {[%emt 0:00:10]} 9. Nf3 {[%emt 0:00:06]} Qc7 {[%emt 0:00:30]} 10. Be2 {[%emt 0:00:07]} b6 {[%emt 0:00:34]} 11. O-O {[%emt 0:00:08] 11.Bb2 gains popularity.} Bb7 {[%emt 0:00:06]} 12. Bb2 {[%emt 0:00:15]} Nbd7 {[%emt 0:00:46]} 13. c4 {[%emt 0:01:13] E53: Nimzo-Indian: Rubinstein: Main Line (4...0-0 5 Nf3 d5 6 Bd3 c5 7 0-0).} (13. Nd2 {feels hotter.} Rfd8 14. a4 Rac8 15. Bd3) 13... Rfd8 {[%emt 0:01:01]} 14. Rc1 {[%emt 0:00:28]} (14. a4 {looks sharper.} Ng4 15. g3 Ndf6 16. Nd2) 14... Rac8 {[%emt 0:00:53]} 15. Qb3 {[%emt 0:07:20] The position is equal.} Ng4 {[%emt 0:08:30]} 16. g3 $1 {[%emt 0:00:44]} (16. d5 exd5 17. h3 (17. cxd5 Ndf6 $15) 17... dxc4 18. Bxc4 Nge5 19. Nxe5 Nxe5 $15) 16... Ngf6 {[%emt 0:00:30]} 17. Rfd1 {[%emt 0:11:29]} Ne4 {[%emt 0:10:38] [#]} 18. d5 $146 {[%emt 0:39:02]} (18. Nd2 {simplifies} Nxd2 19. Rxd2 cxd4 20. exd4 Qc6 21. d5) ({Predecessor:} 18. Ne1 Nd6 19. d5 exd5 20. cxd5 c4 21. Qc2 b5 22. Ng2 Nc5 23. Nf4 Qe7 24. Bg4 {0-1 Carlsen,M (2837)-Anand,V (2782) Wch Rapid Riadh 2017 (9)}) 18... Ndf6 {[%emt 0:00:51]} 19. dxe6 {[%emt 0:03:45]} Ng4 {[%emt 0:08:29] Prevents Ne5.} 20. Rd7 $2 {[%emt 0:13:34]} Rxd7 $19 {[%emt 0:01:33]} 21. exd7 {[%emt 0:00:07]} Qxd7 {[%emt 0:00:06]} (21... Nexf2 $2 22. dxc8=Q+ Qxc8 23. Nh4 $18) 22. Rf1 {[%emt 0:05:42]} Qc6 {[%emt 0:03:28][%cal Oe4g5]} 23. Qb5 {[%emt 0:01:30]} (23. Qd3 $17) 23... Qe6 {[%emt 0:00:25]} 24. Qb3 {[%emt 0:03:55]} Qh6 $2 {[%emt 0:03:29]} (24... Nexf2 25. Rxf2 Nxf2 26. Kxf2 $15) (24... Rd8 $19 {White must now prevent ...Qc6.} 25. h3 Ngxf2 26. Rxf2 Nxg3) 25. Nh4 $1 $15 {[%emt 0:01:19]} Ngf6 {[%emt 0:07:44]} ({Reject} 25... Nexf2 26. Rxf2 Nxf2 27. Kxf2 $11) ({Better is} 25... f5 $15 26. Qd1 Ng5 27. Bxg4 Qc6) 26. Bxf6 $2 {[%emt 0:00:18]} ({Don't play} 26. Nf5 Qh3 27. Ne7+ Kh8 $17) ({White should play} 26. Qd3 $11 Ng5 27. Rd1) 26... Qxf6 $17 {[%emt 0:00:28]} 27. Qc2 {[%emt 0:00:21]} Rd8 $40 {[%emt 0:00:48][%mdl 128] Strongly threatening ...Rd2. Black wants a kill.} 28. Bd3 {[%emt 0:00:59]} Ng5 {[%emt 0:00:43][%cal Rg5h3] Black is much more active.} 29. Rd1 {[%emt 0:01:06]} g6 {[%emt 0:02:49]} 30. Bf1 {[%emt 0:00:42]} (30. f4 $17 Ne4 31. Nf3) 30... Rxd1 $19 {[%emt 0:06:29]} 31. Qxd1 {[%emt 0:00:02]} Ne4 {[%emt 0:00:24]} (31... Kg7 $19 32. Bg2 Ne4) 32. Qc2 {[%emt 0:00:43] Prevents Qb2.} (32. f3 $17 Ng5 33. Bg2) 32... Qa1 {[%emt 0:00:35]} 33. Nf3 {[%emt 0:00:52] [#] Inhibits Ng5.} Nxg3 $1 {[%emt 0:00:48][%mdl 576] Discovered Attack} 34. hxg3 {[%emt 0:00:09] Hoping for Ng5.} Bxf3 {[%emt 0:00:07][%mdl 4096] Endgame KQB-KQB} 35. Qd3 {[%emt 0:00:30]} Qd1 {[%emt 0:02:42]} 36. Qxd1 {[%emt 0:00:33]} Bxd1 {[%emt 0:00:05] KB-KB} 37. Bd3 $2 {[%emt 0:00:08]} (37. f4) 37... Bf3 {[%emt 0:00:18]} 38. Kf1 {[%emt 0:00:05]} Kg7 {[%emt 0:00:37]} 39. Ke1 {[%emt 0:00:06]} Kf6 {[%emt 0:00:38]} 40. Kd2 {[%emt 0:00:00] [#]} Ke5 {[%emt 0:00:00] Against e4} 41. Bc2 {[%emt 0:08:51]} (41. Ke1 $142 h6 42. Bb1) 41... h5 {[%emt 0:01:46] aiming for ...g5.} 42. Ba4 {[%emt 0:01:09]} g5 {[%emt 0:00:54] Threatens to win with ...h4.} 43. Bd7 {[%emt 0:00:30]} f5 {[%emt 0:00:35]} 44. Ke1 {[%emt 0:00:32]} Be4 {[%emt 0:06:02] ...h4 would be deadly.} 45. f4+ {[%emt 0:01:00]} (45. Bb5 $142 f4 46. exf4+ gxf4 47. Be8) 45... gxf4 {[%emt 0:00:10]} 46. gxf4+ {[%emt 0:00:02]} (46. exf4+ $142 Kd4 47. Be8) 46... Kd6 {[%emt 0:00:49]} 47. Be8 {[%emt 0:00:08]} h4 {[%emt 0:00:25]} 48. Kf2 {[%emt 0:00:13]} a6 {[%emt 0:00:38]} 49. Kg1 {[%emt 0:02:44]} Ke7 {[%emt 0:00:31]} 50. Ba4 {[%emt 0:00:21]} Bd3 {[%emt 0:00:10][%cal Ob6b5]} 51. Kh2 {[%emt 0:01:05]} Bxc4 {[%emt 0:02:03]} 52. Bc2 {[%emt 0:00:09]} Kf6 {[%emt 0:00:58] ( -> ...b5)} 53. Kh3 {[%emt 0:00:05]} b5 {[%emt 0:01:14][%cal Bb6b5,Bb5b4][%mdl 32] Black mates.} 54. Kxh4 {[%emt 0:00:13]} b4 {[%emt 0:00:37]} 55. a4 {[%emt 0:01:17]} Ba2 {[%emt 0:00:46] Weighted Error Value: White=0.84/Black=0.33} 0-1

[Event "European Women-ch 2023"]
[Site "Petrovac"]
[Date "2023.03.20"]
[Round "3.17"]
[White "Velikic, Adela"]
[Black "Tsirulnik, Maritsa"]
[Result "1-0"]
[ECO "B54"]
[WhiteElo "2329"]
[BlackElo "2121"]
[Annotator "TA"]
[PlyCount "69"]
[EventDate "2023.03.15"]
[EventType "swiss"]
[EventCountry "MNE"]
[SourceTitle "playchess.com"]
[Source "ChessBase"]
[SourceQuality "1"]
[TimeControl "40/5400+30:1800+30"]

{[%evp 13,69,40,54,34,81,18,16,0,6,10,11,12,16,0,3,-53,0,-10,-13,-14,56,0,0,21,26,35,62,34,50,33,95,80,75,64,70,57,154,152,202,218,211,215,211,206,224,206,232,214,467,327,501,507,507,473,556,554,1507,1479]} 1. e4 {[%emt 0:00:10]} c5 {[%emt 0:00:09]} 2. Nf3 {[%emt 0:00:26]} e6 {[%emt 0:00:06]} 3. d4 {[%emt 0:00:04]} cxd4 {[%emt 0:00:05]} 4. Nxd4 {[%emt 0:00:04]} Nc6 {[%emt 0:00:04]} 5. Nc3 {[%emt 0:00:09]} d6 {[%emt 0:00:08]} 6. g4 {[%emt 0:00:12]} Nge7 {[%emt 0:08:59]} 7. Be3 {[%emt 0:06:01]} a6 {[%emt 0:12:03]} 8. h4 {[%emt 0:09:15] [#] B54: Sicilian: 2...d6 3 d4 cxd4 4 Nxd4, Unusual Lines .} h6 $146 {[%emt 0:05:14]} (8... b5 $14 {was preferrable.}) ({Predecessor:} 8... b5 9. a3 Bb7 10. g5 Rc8 11. Be2 Nxd4 12. Qxd4 Nc6 13. Qd2 Ne5 14. h5 Nc4 15. Bxc4 Rxc4 {1-0 Ivic,V (2623)-Hansen,E (2606) Titled Tuesday intern op 31st May Late blitz 2022 (11)}) 9. Be2 {[%emt 0:14:02]} (9. Nb3 $16) 9... b5 $11 {[%emt 0:14:44]} 10. Qd2 {[%emt 0:08:16] The position is equal.} Bb7 {[%emt 0:02:51]} 11. O-O-O {[%emt 0:02:39][%cal Be1c1,Bc1b2,Bb2b1][%mdl 32]} Nxd4 {[%emt 0:08:45]} 12. Qxd4 {[%emt 0:00:16]} Nc6 {[%emt 0:00:17]} 13. Qd2 {[%emt 0:01:19]} Rc8 {[%emt 0:02:08]} 14. Rh3 {[%emt 0:13:04]} (14. Bf4 $11) 14... Na5 {[%emt 0:05:58]} (14... Qa5 $1 $15) 15. b3 {[%emt 0:20:55]} Qc7 {[%emt 0:06:37]} 16. Kb2 {[%emt 0:06:38]} Be7 {[%emt 0:11:27]} (16... b4 $11 17. Na4 Bxe4) 17. Bd4 {[%emt 0:07:47]} (17. a3 $14) 17... Kf8 $1 {[%emt 0:02:17]} 18. f4 {[%emt 0:03:56] Active counter play!} Nc6 {[%emt 0:01:34] ...b4 would be deadly.} (18... b4 {is more complex.} 19. Na4 Bxe4 20. Bd3 Bxd3 21. Rxd3 Nc6) 19. Bf2 {[%emt 0:00:54]} Bf6 {[%emt 0:04:35] White must now prevent ...b4.} 20. Kb1 $36 {[%emt 0:00:43][%mdl 2048] White is more active.} ({Much weaker is} 20. Qxd6+ Qxd6 21. Rxd6 b4 $17) (20. a3 {with more complications.} b4 21. axb4 Nxb4 22. Bd4) 20... Be7 {[%emt 0:05:54]} 21. Bf1 {[%emt 0:01:52]} Nb4 {[%emt 0:01:10]} (21... Kg8 $14) 22. a3 $16 {[%emt 0:00:39]} Nc6 {[%emt 0:00:19]} 23. Na2 {[%emt 0:01:00]} Rd8 {[%emt 0:01:11]} 24. Bg2 {[%emt 0:00:30]} a5 {[%emt 0:01:20] [#]} (24... Rc8 $14) 25. Nc3 $1 {[%emt 0:00:34]} Ba6 {[%emt 0:00:40] [#]} (25... b4 $16) 26. Bf1 $1 $18 {[%emt 0:00:17]} Qb7 {[%emt 0:01:07]} 27. Qe2 {[%emt 0:00:41] Strongly threatening a4.} a4 {[%emt 0:01:29]} 28. b4 {[%emt 0:00:43]} Rb8 {[%emt 0:02:21]} 29. Kc1 {[%emt 0:01:08]} Qc7 {[%emt 0:00:30]} 30. Nxa4 {[%emt 0:00:39]} Bf6 $2 {[%emt 0:00:53]} (30... Kg8 31. Qe3 h5) 31. e5 {[%emt 0:00:29]} bxa4 {[%emt 0:00:24]} (31... dxe5 $142 32. Bc5+ (32. Nc5 Bc8 $18) 32... Be7) 32. Qxa6 {[%emt 0:00:10] White is clearly winning.} dxe5 {[%emt 0:00:05]} 33. Bc5+ {[%emt 0:00:28] A strong pair of Bishops. Black is weak on the light squares} Be7 {[%emt 0:00:18]} 34. Rc3 {[%emt 0:00:15]} (34. Qxa4 Bxc5 35. Rc3 e4 36. Rxc5 Qxf4+ 37. Kb2 Qf3 $16) 34... Nxb4 {[%emt 0:01:14]} 35. Bxb4 {[%emt 0:00:49] Weighted Error Value: White=0.20 (precise) /Black=0.37} 1-0

[Event "European Women-ch 2023"]
[Site "Petrovac"]
[Date "2023.03.20"]
[Round "3.17"]
[White "Mayrhuber, Nikola"]
[Black "Silva, Mariana Sofia T."]
[Result "1-0"]
[ECO "D35"]
[WhiteElo "2162"]
[BlackElo "1920"]
[Annotator "TA"]
[PlyCount "61"]
[EventDate "2023.03.15"]
[EventType "swiss"]
[EventCountry "MNE"]
[SourceTitle "playchess.com"]
[Source "ChessBase"]
[SourceQuality "1"]
[TimeControl "40/5400+30:1800+30"]

{[%evp 15,61,12,15,14,14,10,10,10,20,0,0,2,13,22,15,-5,25,29,27,33,49,52,45,32,30,54,102,106,148,138,256,73,71,71,272,292,286,273,953,870,1512,1283,1277,1258,1240,1226,6098,6249]} 1. d4 {[%emt 0:00:07]} d5 {[%emt 0:00:08]} 2. c4 {[%emt 0:00:04]} e6 {[%emt 0:00:06]} 3. Nc3 {[%emt 0:00:05]} Nf6 {[%emt 0:00:07]} 4. cxd5 {[%emt 0:00:05]} exd5 {[%emt 0:00:09]} 5. Bg5 {[%emt 0:00:06]} c6 {[%emt 0:00:11]} 6. e3 {[%emt 0:00:05]} h6 {[%emt 0:00:32]} 7. Bh4 {[%emt 0:00:06]} Be7 {[%emt 0:00:07]} 8. Bd3 {[%emt 0:00:11]} O-O {[%emt 0:00:19]} 9. Nge2 {[%emt 0:00:26] D35: Queen's Gambit Declined: Exchange Variation.} Re8 {[%emt 0:00:28]} 10. O-O {[%emt 0:00:25]} a5 {[%emt 0:00:19]} 11. f3 {[%emt 0:07:15] The position is equal.} b5 {[%emt 0:00:14]} 12. Rc1 {[%emt 0:04:39]} Nbd7 {[%emt 0:06:43] [#]} 13. Qd2 $146 {[%emt 0:03:41]} ({Predecessor:} 13. Bf2 Nb6 14. Ng3 Nc4 15. Bxc4 dxc4 16. e4 Bf8 17. Qc2 Nh7 18. Rfd1 Ba6 19. d5 {1-0 Vidit,S (2710)-Abdusattorov,N (2713) Aimchess Rapid Prelim 2022 (5)}) 13... Ba6 {[%emt 0:06:31]} 14. Bf2 {[%emt 0:13:11]} Bf8 {[%emt 0:11:58]} 15. Kh1 {[%emt 0:02:51]} Nb6 {[%emt 0:01:28]} 16. b3 {[%emt 0:00:49] Inhibits Nc4.} Qd7 {[%emt 0:06:30]} 17. Ng3 {[%emt 0:03:22]} g6 {[%emt 0:00:49]} 18. e4 {[%emt 0:10:28] e5 would be deadly.} b4 $1 {[%emt 0:02:56]} 19. Nce2 {[%emt 0:04:27] Hoping for e5.} Bxd3 {[%emt 0:00:52]} 20. Qxd3 {[%emt 0:00:06]} dxe4 {[%emt 0:04:04]} (20... c5 $1 $14 {might be stronger.}) 21. fxe4 $16 {[%emt 0:00:08][%cal Od4d5]} Ng4 {[%emt 0:01:25][%cal Oc6c5] [#]} 22. Bg1 $1 {[%emt 0:01:57] aiming for h3.} c5 {[%emt 0:06:31]} (22... h5 $16 {was called for.}) 23. Nf4 $2 {[%emt 0:13:20]} (23. Qf3 $18 {is more deadly.}) 23... cxd4 {[%emt 0:08:25]} 24. Bxd4 {[%emt 0:03:39]} ({But not} 24. Qxd4 $6 Qxd4 25. Bxd4 Nd7 $11) 24... Ne5 $2 {[%emt 0:03:25] This move loses the game for Black.} (24... Rad8 $16 {was worth a try.} 25. Rcd1 Qxd4 26. Qxd4 Rxd4 27. Rxd4 Bc5) 25. Qe3 $18 {[%emt 0:00:43]} Nc8 {[%emt 0:06:40]} 26. Nd5 {[%emt 0:01:02][%cal Bf4d5,Bd5f6,Bf6d7,Bd7f8][%mdl 32] And now Nf6+ would win.} Ng4 {[%emt 0:04:48]} (26... Bg7 27. Rfd1 Nd6) 27. Qf3 {[%emt 0:02:12] Intending Nf6+ and mate. White is clearly winning.} f5 {[%emt 0:25:18] [#]} 28. Qxg4 $3 {[%emt 0:02:11][%mdl 512]} fxg4 {[%emt 0:00:47]} 29. Nf6+ {[%emt 0:00:07] Excellent horsemanship.} Kf7 {[%emt 0:00:05]} 30. Nxd7+ {[%emt 0:00:07][%mdl 64] Discovered Attack} Ke6 {[%emt 0:00:06]} 31. Nxf8+ {[%emt 0:00:20] Excellently played by Mayrhuber!   Weighted Error Value: White=0.17 (very precise) /Black=0.34} 1-0